bitfinex/quotes_BTCUSD_20241206
["timestamp","ask_amount","ask_price","bid_price","bid_amount"]
[1733495456232,0.00818233,99315.0,99314.0,0.46431599]
[1733495456445,0.00314693,99315.0,99314.0,0.33016075]
[1733495456895,0.00314688,99315.0,99314.0,0.33016075]
[1733495457394,0.00314688,99315.0,99314.0,0.55378011]
[1733495457639,0.00017279,99321.0,99314.0,0.33016075]
[1733495457872,0.00818179,99320.0,99319.0,0.13419647]
[1733495458105,0.00818179,99320.0,99318.0,0.08947545]
[1733495458322,0.00818179,99319.0,99317.0,0.201373]
[1733495458542,0.00017279,99321.0,99319.0,0.201371]
[1733495458772,0.00017279,99321.0,99320.0,0.3303787]
[1733495459011,0.00273096,99344.0,99321.0,0.201367]
[1733495459012,0.21251967,99344.0,99321.0,0.201367]
[1733495459245,0.0081807,99343.0,99334.0,0.089487]
[1733495459474,0.0081807,99343.0,99327.0,0.201353]
[1733495459475,0.0081807,99342.0,99335.0,0.089487]
[1733495459698,0.0081807,99341.0,99334.0,0.089487]
[1733495459957,0.0081807,99340.0,99330.0,0.089487]
[1733495460174,0.2095107,99339.0,99332.0,0.089487]
[1733495460416,0.00818098,99338.0,99334.0,0.089487]
[1733495460636,0.00818098,99337.0,99335.0,0.089487]
[1733495460893,0.00818098,99336.0,99334.0,0.20134]
[1733495461182,0.00273203,99355.0,99335.0,0.51849458]
[1733495461377,0.1,99399.0,99335.0,0.51849458]
[1733495461378,0.00273203,99363.0,99349.0,0.20131]
[1733495461592,0.00405163,99350.0,99349.0,0.63680458]
[1733495462107,0.0009057,99350.0,99349.0,1.03285693]
[1733495462346,0.0009057,99350.0,99349.0,0.63680458]
[1733495462645,0.01132257,99378.0,99364.0,0.023]
[1733495462856,0.00259405,99387.0,99364.0,0.023]
[1733495462857,0.09055291,99400.0,99377.0,0.30628454]
[1733495463071,0.09055291,99400.0,99379.0,0.201249]
[1733495463305,0.00107894,99380.0,99379.0,0.63674358]
[1733495464395,0.00107894,99380.0,99379.0,0.67009907]
[1733495464660,0.00107894,99380.0,99379.0,0.63674358]
[1733495464885,0.00107894,99380.0,99379.0,0.67009907]
[1733495465105,0.00107894,99380.0,99379.0,0.68145874]
[1733495465335,0.00107894,99380.0,99379.0,0.95753502]
[1733495465551,0.00107894,99380.0,99379.0,0.92417953]
[1733495465778,9.4e-07,99380.0,99379.0,0.96345874]
[1733495466009,9.4e-07,99380.0,99379.0,1.04005874]
[1733495466270,0.05031291,99400.0,99399.0,0.05]
[1733495466490,3e-08,99403.0,99402.0,0.073]
[1733495466694,0.00012766,99403.0,99402.0,0.47897562]
[1733495466946,0.00012766,99403.0,99402.0,0.43549458]
[1733495467766,0.00012766,99403.0,99402.0,0.249573]
[1733495468179,0.00012766,99403.0,99402.0,0.24947204]
[1733495468426,0.00012766,99403.0,99402.0,0.44394053]
[1733495468627,0.00012766,99403.0,99402.0,0.11635]
[1733495469077,0.00012766,99403.0,99402.0,0.12535]
[1733495469271,0.00012766,99403.0,99402.0,0.10503154]
[1733495469393,0.00012766,99403.0,99392.0,0.201221]
[1733495469593,0.00012766,99403.0,99393.0,0.10503154]
[1733495469850,0.00012766,99403.0,99395.0,0.201216]
[1733495470066,0.00012766,99403.0,99380.0,0.24766306]
[1733495470067,0.00012766,99403.0,99391.0,0.201224]
[1733495470294,0.00012766,99403.0,99391.0,0.10503154]
[1733495470715,0.00012766,99403.0,99402.0,0.009]
[1733495470921,0.00012766,99403.0,99402.0,0.10503154]
[1733495471130,0.0018647,99410.0,99409.0,0.201189]
[1733495471341,0.0018647,99410.0,99409.0,0.30622054]
[1733495472384,0.0018647,99410.0,99389.0,0.08874094]
[1733495472664,0.0018647,99410.0,99409.0,0.007]
[1733495473851,0.0018647,99410.0,99408.0,0.20119]
[1733495474059,0.201148,99429.0,99414.0,0.201178]
[1733495474265,0.00314377,99424.0,99414.0,0.201178]
[1733495474463,0.00314377,99423.0,99414.0,0.402356]
[1733495474672,0.00314377,99422.0,99408.0,0.20119]
[1733495474847,0.201167,99420.0,99409.0,0.006]
[1733495475054,0.00314377,99419.0,99403.0,0.201199]
[1733495475258,0.201172,99417.0,99403.0,0.30623054]
[1733495475466,0.00628791,99429.0,99414.0,0.001]
[1733495475467,0.00314377,99416.0,99414.0,0.001]
[1733495475752,0.0118649,99430.0,99424.0,0.201158]
[1733495475953,0.0118649,99430.0,99424.0,0.43875365]
[1733495476154,0.0118649,99430.0,99423.0,0.13255559]
[1733495476301,0.0118649,99430.0,99419.0,0.201168]
[1733495476511,0.0118649,99430.0,99417.0,0.201172]
[1733495476733,0.0118649,99430.0,99414.0,0.08837065]
[1733495476928,0.0118649,99430.0,99411.0,0.13255559]
[1733495476929,0.20115,99428.0,99411.0,0.201184]
[1733495477096,0.00314362,99424.0,99411.0,0.201184]
[1733495477295,0.00817344,99423.0,99409.0,0.002]
[1733495477511,0.00314362,99422.0,99409.0,0.10503154]
[1733495477752,0.00314362,99421.0,99420.0,0.201166]
[1733495477971,0.0118649,99430.0,99422.0,0.201162]
[1733495478196,0.0118649,99430.0,99424.0,0.201158]
[1733495478561,0.00070924,99425.0,99424.0,0.30618954]
[1733495479004,0.00070924,99425.0,99424.0,0.31788395]
[1733495480094,0.01615864,99426.0,99424.0,0.31788395]
[1733495480333,0.01615864,99426.0,99425.0,0.10603712]
[1733495480542,0.0119049,99430.0,99426.0,0.402308]
[1733495480763,0.0019047,99440.0,99428.0,0.20115]
[1733495480970,0.0019047,99440.0,99429.0,0.10603708]
[1733495480971,0.00314229,99436.0,99429.0,0.10603708]
[1733495481214,0.249354,99476.0,99433.0,0.20114]
[1733495481427,0.01445499,99469.0,99434.0,0.10503154]
[1733495481636,0.01445499,99468.0,99434.0,0.10503154]
[1733495481854,0.01445499,99467.0,99454.0,0.402194]
[1733495482070,0.249354,99476.0,99454.0,0.402194]
[1733495482071,0.01445499,99466.0,99454.0,0.201097]
[1733495482279,0.01445499,99465.0,99454.0,0.201097]
[1733495482487,0.01445499,99464.0,99454.0,0.201097]
[1733495482701,0.01445499,99463.0,99434.0,0.10503154]
[1733495482926,0.2292,99459.0,99432.0,0.02]
[1733495483144,0.15,99457.0,99432.0,0.02]
[1733495483356,0.201109,99449.0,99432.0,0.02]
[1733495483561,0.0144575,99448.0,99432.0,0.02]
[1733495483788,0.0144575,99447.0,99442.0,0.201121]
[1733495483997,0.0144575,99446.0,99442.0,0.201121]
[1733495484271,0.0144575,99445.0,99443.0,0.0201121]
[1733495484483,0.00817163,99444.0,99443.0,0.0201121]
[1733495484691,0.00817163,99444.0,99443.0,0.12514364]
[1733495485341,0.00817163,99444.0,99443.0,0.10503154]
[1733495485574,0.01445727,99444.0,99443.0,0.10503154]
[1733495485804,0.01445727,99444.0,99442.0,0.201121]
[1733495486025,0.01445727,99443.0,99433.0,0.20114]
[1733495486251,0.01445727,99443.0,99432.0,0.02]
[1733495486470,0.201117,99445.0,99432.0,0.02]
[1733495486471,0.01445727,99442.0,99432.0,0.02]
[1733495486695,0.21558127,99441.0,99432.0,0.02]
[1733495486932,0.01445727,99440.0,99432.0,0.02]
[1733495487160,0.01445727,99439.0,99432.0,0.02]
[1733495487410,0.01445727,99438.0,99432.0,0.021]
[1733495487637,0.01692257,99437.0,99432.0,0.02]
[1733495487910,0.01445727,99436.0,99433.0,0.30617154]
[1733495488162,0.01445727,99435.0,99433.0,0.50731154]
[1733495488369,0.01245727,99434.0,99433.0,0.50731154]
[1733495488591,0.01245727,99434.0,99433.0,0.30617154]
[1733495488808,0.01245727,99434.0,99432.0,0.02]
[1733495489032,0.201118,99444.0,99432.0,0.02]
[1733495489255,0.0005764,99434.0,99433.0,0.0221152]
[1733495489466,0.0005764,99434.0,99432.0,0.01948476]
[1733495490520,0.20114,99433.0,99432.0,0.01948476]
[1733495491146,0.20114,99433.0,99432.0,0.02048476]
[1733495491355,0.20114,99433.0,99414.0,0.201178]
[1733495491561,0.20114,99433.0,99411.0,0.201183]
[1733495491863,0.40228,99433.0,99432.0,0.001]
[1733495492059,0.20114,99433.0,99414.0,0.201178]
[1733495492279,0.20114,99433.0,99415.0,0.10503154]
[1733495492487,0.201166,99421.0,99411.0,0.01165885]
[1733495492724,0.0005764,99434.0,99411.0,0.01165885]
[1733495492936,0.0005764,99434.0,99410.0,0.00173]
[1733495492937,0.0005764,99434.0,99417.0,0.201171]
[1733495493198,0.0005764,99434.0,99418.0,0.03062025]
[1733495493406,0.0005764,99434.0,99417.0,0.200546]
[1733495493820,0.0005764,99434.0,99413.0,0.201179]
[1733495493821,0.20114,99433.0,99413.0,0.201179]
[1733495494026,0.20114,99433.0,99414.0,0.10503154]
[1733495494231,0.20114,99433.0,99415.0,0.201176]
[1733495494455,0.0005764,99434.0,99410.0,0.01322761]
[1733495494661,0.0005764,99434.0,99410.0,0.00173]
[1733495494662,0.201161,99423.0,99410.0,0.00173]
[1733495494856,0.402322,99423.0,99410.0,0.00173]
[1733495495061,0.201161,99423.0,99410.0,0.00173]
[1733495495266,0.201171,99418.0,99410.0,0.00173]
[1733495495695,0.201141,99433.0,99411.0,0.10503154]
[1733495495900,0.201142,99432.0,99413.0,0.20118]
[1733495496110,0.0094315,99439.0,99412.0,0.01067615]
[1733495496313,0.00204154,99413.0,99412.0,0.01067615]
[1733495496519,0.00204154,99415.0,99413.0,0.20118]
[1733495496959,0.00204154,99416.0,99412.0,0.01067615]
[1733495497178,0.00204154,99416.0,99410.0,0.00173]
[1733495497390,0.00204154,99413.0,99412.0,0.001]
[1733495497804,0.00204154,99414.0,99410.0,0.00173]
[1733495498016,0.00204154,99414.0,99413.0,0.003]
[1733495498444,0.00204154,99415.0,99410.0,0.00173]
[1733495498907,0.20321954,99414.0,99410.0,0.00173]
[1733495499170,0.20321954,99414.0,99412.0,0.004]
[1733495499171,0.0050304,99413.0,99412.0,0.004]
[1733495500121,0.0050304,99413.0,99412.0,0.0246923]
[1733495500365,0.0050304,99413.0,99412.0,0.10903154]
[1733495500913,0.0050304,99413.0,99412.0,0.10503154]
[1733495501179,0.0050304,99413.0,99412.0,0.18493736]
[1733495501180,0.00808099,99413.0,99412.0,0.18493736]
[1733495501435,0.00808099,99413.0,99412.0,0.38493736]
[1733495501436,0.00179389,99413.0,99412.0,0.38493736]
[1733495501694,0.000865,99430.0,99417.0,0.05]
[1733495501945,0.000865,99430.0,99429.0,0.201148]
[1733495502204,0.00715069,99430.0,99429.0,0.30617954]
[1733495502702,0.00715069,99430.0,99426.0,0.08864455]
[1733495502947,0.00628569,99429.0,99420.0,0.28980955]
[1733495503257,0.000865,99430.0,99425.0,0.201156]
[1733495503424,0.0062867,99428.0,99421.0,0.10503154]
[1733495503652,0.0062867,99427.0,99426.0,0.08864455]
[1733495503868,0.0062867,99427.0,99424.0,0.08864455]
[1733495504077,0.00628664,99426.0,99424.0,0.08864455]
[1733495504305,0.19881964,99434.0,99424.0,0.08864455]
[1733495504541,0.201153,99427.0,99423.0,0.08864455]
[1733495504761,0.201142,99432.0,99421.0,0.09764455]
[1733495504979,0.201142,99432.0,99421.0,0.08864455]
[1733495505440,0.201142,99432.0,99424.0,0.004]
[1733495505659,0.201142,99432.0,99423.0,0.08864455]
[1733495505884,0.201153,99427.0,99421.0,0.08864455]
[1733495506101,0.201144,99431.0,99425.0,0.08864455]
[1733495506312,0.201144,99431.0,99420.0,0.13296683]
[1733495506537,0.201144,99431.0,99426.0,0.03989005]
[1733495506758,0.201144,99431.0,99419.0,0.33477464]
[1733495506986,0.201136,99435.0,99421.0,0.002]
[1733495507229,0.201145,99431.0,99419.0,0.13360764]
[1733495507457,0.201139,99434.0,99422.0,0.13360764]
[1733495507686,0.201139,99434.0,99423.0,0.10489492]
[1733495507916,0.201119,99444.0,99423.0,0.10489492]
[1733495508182,0.201127,99440.0,99423.0,0.23850256]
[1733495508482,0.201127,99440.0,99426.0,0.13360764]
[1733495508714,0.201127,99440.0,99426.0,0.33476164]
[1733495508976,0.201102,99452.0,99428.0,0.13360764]
[1733495509243,0.00204277,99435.0,99429.0,0.46220947]
[1733495509470,0.20111,99448.0,99427.0,0.2386689]
[1733495509471,0.00204277,99436.0,99433.0,0.13360764]
[1733495509686,0.201119,99444.0,99428.0,0.13360764]
[1733495509902,0.00204293,99431.0,99427.0,0.13360764]
[1733495510117,0.00204293,99428.0,99426.0,0.13360764]
[1733495510339,0.00204293,99430.0,99426.0,0.13360764]
[1733495510561,0.00204293,99432.0,99428.0,0.13356523]
[1733495510802,0.00204293,99434.0,99430.0,0.13356523]
[1733495511063,0.201113,99447.0,99430.0,0.46228764]
[1733495511064,0.00204293,99435.0,99430.0,0.46228764]
[1733495511275,0.00204293,99433.0,99430.0,0.13357304]
[1733495511491,0.00502914,99432.0,99430.0,0.13357304]
[1733495511702,0.00502914,99431.0,99430.0,0.13357304]
[1733495511925,0.00502914,99431.0,99429.0,0.13357304]
[1733495512164,0.00204293,99432.0,99430.0,0.0017298]
[1733495512382,0.20617365,99431.0,99430.0,0.0017298]
[1733495513023,0.00502965,99431.0,99430.0,0.0017298]
[1733495513241,0.01336137,99431.0,99430.0,0.0017298]
[1733495513465,0.01131645,99431.0,99430.0,0.34155312]
[1733495513733,0.01131645,99431.0,99430.0,0.0017298]
[1733495513956,0.01445967,99431.0,99430.0,0.0017298]
[1733495514880,0.01445967,99431.0,99430.0,0.10676134]
[1733495515101,0.00817287,99431.0,99430.0,0.10776693]
[1733495515308,0.00817287,99431.0,99430.0,0.24033438]
[1733495515519,0.00817287,99431.0,99430.0,0.10676134]
[1733495516608,0.00314322,99431.0,99430.0,0.0017298]
[1733495516836,0.0082121,99431.0,99430.0,0.0017298]
[1733495517068,0.001,99490.0,99483.0,0.05]
[1733495517294,0.001,99490.0,99485.0,0.30606654]
[1733495517541,0.001,99490.0,99485.0,0.33413518]
[1733495517542,0.00897943,99486.0,99485.0,0.33413518]
[1733495517758,0.001,99490.0,99486.0,0.05]
[1733495517977,0.001,99490.0,99489.0,0.10503154]
[1733495518192,0.001,99490.0,99489.0,0.10603641]
[1733495518413,0.002,99500.0,99499.0,0.201007]
[1733495518640,0.002,99500.0,99499.0,0.34624134]
[1733495519109,0.00079278,99515.0,99504.0,0.200995]
[1733495519323,0.00079278,99515.0,99499.0,0.30603854]
[1733495519324,0.00079278,99515.0,99506.0,0.401984]
[1733495519535,0.00079278,99515.0,99508.0,0.200988]
[1733495519750,0.00079278,99515.0,99509.0,0.10603628]
[1733495520007,0.00079278,99515.0,99509.0,0.10503154]
[1733495520258,0.0018255,99510.0,99509.0,0.15941929]
[1733495520473,0.0018255,99510.0,99509.0,0.30702241]
[1733495520689,0.0018255,99510.0,99509.0,0.30601754]
[1733495521114,0.0018255,99510.0,99509.0,0.200986]
[1733495521357,0.0018255,99510.0,99503.0,0.200997]
[1733495521566,0.0018255,99510.0,99509.0,0.006]
[1733495523116,0.0018255,99510.0,99480.0,0.201043]
[1733495523117,0.201005,99500.0,99473.0,0.08871443]
[1733495523335,0.201005,99500.0,99469.0,0.201067]
[1733495523549,0.201005,99500.0,99455.0,0.17742887]
[1733495523550,0.30603654,99500.0,99455.0,0.08871443]
[1733495523792,0.30603654,99500.0,99455.0,0.201094]
[1733495523793,1.93763654,99500.0,99455.0,0.201094]
[1733495524052,1.93763654,99500.0,99459.0,0.201086]
[1733495524271,0.15863159,99480.0,99440.0,0.201126]
[1733495524509,0.15863159,99480.0,99441.0,0.14845551]
[1733495524510,0.2011,99453.0,99441.0,0.14845551]
[1733495524726,0.1208947,99479.0,99442.0,0.10503154]
[1733495524941,0.1208947,99479.0,99431.0,0.02243475]
[1733495524942,0.201116,99445.0,99431.0,0.02243475]
[1733495525160,0.201138,99434.0,99430.0,0.0017298]
[1733495525377,0.1292,99459.0,99430.0,0.0017298]
[1733495525378,0.201124,99441.0,99430.0,0.0017298]
[1733495525589,0.1292,99459.0,99430.0,0.0017298]
[1733495525811,0.201126,99440.0,99430.0,0.0017298]
[1733495526036,0.201134,99436.0,99430.0,0.0017298]
[1733495526258,0.15863159,99450.0,99430.0,0.0017298]
[1733495526482,0.20114,99433.0,99430.0,0.0017298]
[1733495526707,0.40228,99433.0,99430.0,0.0023062]
[1733495527162,0.40228,99433.0,99430.0,0.0113062]
[1733495527383,0.351144,99431.0,99430.0,0.0023062]
[1733495527629,0.351144,99431.0,99420.0,0.00173]
[1733495527630,0.401164,99421.0,99420.0,0.00173]
[1733495527871,0.45619554,99421.0,99420.0,0.00173]
[1733495528054,0.50619554,99421.0,99420.0,0.00173]
[1733495528313,0.65693109,99421.0,99420.0,0.00173]
[1733495528526,0.65693109,99421.0,99410.0,0.00173]
[1733495528527,0.351184,99411.0,99410.0,0.00173]
[1733495528755,0.45621554,99411.0,99410.0,0.00173]
[1733495528980,0.50936072,99411.0,99410.0,0.00173]
[1733495529219,0.55936072,99411.0,99410.0,0.00173]
[1733495529653,0.451205,99401.0,99400.0,0.01]
[1733495529882,0.70938172,99401.0,99400.0,0.01]
[1733495530323,0.201282,99363.0,99342.0,0.08871443]
[1733495530599,0.201282,99363.0,99336.0,0.42312109]
[1733495530600,0.201282,99363.0,99336.0,0.201335]
[1733495530822,0.201284,99362.0,99341.0,0.201326]
[1733495531045,0.15863159,99380.0,99336.0,0.201335]
[1733495531286,0.201296,99356.0,99340.0,0.00190402]
[1733495531502,0.201296,99356.0,99342.0,0.009]
[1733495531503,0.201298,99355.0,99342.0,0.009]
[1733495531944,0.25503154,99379.0,99342.0,0.009]
[1733495531945,0.201313,99348.0,99342.0,0.009]
[1733495532160,0.402626,99348.0,99342.0,0.009]
[1733495532377,0.2013,99354.0,99342.0,0.009]
[1733495532586,0.201304,99352.0,99342.0,0.009]
[1733495532813,0.201289,99360.0,99340.0,0.00190402]
[1733495533037,0.201283,99363.0,99341.0,0.2216501]
[1733495533250,0.001,99362.0,99341.0,0.2306501]
[1733495533464,0.201286,99361.0,99341.0,0.210326]
[1733495533687,0.201275,99367.0,99341.0,0.402652]
[1733495533933,0.001,99352.0,99342.0,0.11956113]
[1733495534140,0.22395827,99401.0,99352.0,0.05]
[1733495534141,0.08192593,99397.0,99352.0,0.05]
[1733495534421,0.125,99422.0,99361.0,0.023]
[1733495534637,0.125,99422.0,99389.0,0.201228]
[1733495534843,0.125,99422.0,99390.0,0.00100601]
[1733495534844,0.201186,99411.0,99390.0,0.00100601]
[1733495535058,0.201186,99411.0,99382.0,0.201242]
[1733495535282,0.201216,99396.0,99391.0,0.00443822]
[1733495535499,0.28378173,99410.0,99370.0,0.201266]
[1733495535715,0.201217,99395.0,99372.0,0.201263]
[1733495535933,0.20121,99399.0,99374.0,0.402518]
[1733495536171,0.201221,99393.0,99375.0,0.15655434]
[1733495536401,0.201214,99397.0,99375.0,0.10947873]
[1733495536625,0.201214,99397.0,99380.0,0.0017286]
[1733495537087,0.201238,99385.0,99380.0,0.0017286]
[1733495537546,0.25,99423.0,99381.0,0.10503154]
[1733495537807,0.25,99423.0,99380.0,0.0017286]
[1733495537808,0.28024786,99410.0,99380.0,0.0017286]
[1733495538031,0.201241,99384.0,99380.0,0.0017286]
[1733495538290,0.28024786,99390.0,99380.0,0.0017286]
[1733495538514,0.201241,99383.0,99380.0,0.0017286]
[1733495538767,0.402482,99383.0,99380.0,0.0017286]
[1733495539282,0.08952107,99469.0,99380.0,0.0017286]
[1733495539283,0.20124,99384.0,99380.0,0.0027286]
[1733495539512,0.20124,99384.0,99380.0,0.0017286]
[1733495540009,0.402481,99384.0,99380.0,0.0017286]
[1733495541409,0.201243,99382.0,99380.0,0.0017286]
[1733495541898,0.10503154,99381.0,99380.0,0.0017286]
[1733495543155,0.201243,99382.0,99380.0,0.0017286]
[1733495543385,0.20124,99384.0,99380.0,0.0017286]
[1733495543839,0.402481,99384.0,99380.0,0.0017286]
[1733495544309,0.201205,99401.0,99380.0,0.0017286]
[1733495544565,0.3276815,99400.0,99380.0,0.0017286]
[1733495544813,0.201237,99386.0,99380.0,0.0017286]
[1733495545728,0.402472,99386.0,99380.0,0.0017286]
[1733495547590,0.402472,99386.0,99380.0,0.0027286]
[1733495547841,0.402478,99384.0,99380.0,0.0027286]
[1733495548063,0.201243,99382.0,99380.0,0.0027286]
[1733495548304,0.10503154,99381.0,99380.0,0.0027286]
[1733495548515,0.18263154,99381.0,99380.0,0.0027286]
[1733495548997,0.18263154,99381.0,99380.0,0.0017286]
[1733495549428,0.18263154,99381.0,99380.0,0.0027286]
[1733495549746,0.18263154,99381.0,99380.0,0.0017286]
[1733495549829,0.27214027,99381.0,99380.0,0.0017286]
[1733495550265,0.18263154,99381.0,99380.0,0.0017286]
[1733495551378,0.33263154,99381.0,99380.0,0.0017286]
[1733495553162,0.38263154,99381.0,99380.0,0.0017286]
[1733495553384,0.43263154,99381.0,99380.0,0.0017286]
[1733495553847,0.70563154,99381.0,99380.0,6e-07]
[1733495554064,0.701276,99366.0,99365.0,0.00017282]
[1733495554289,0.80630754,99366.0,99365.0,0.00017282]
[1733495555645,0.80630754,99366.0,99320.0,0.0017316]
[1733495555646,0.201326,99341.0,99320.0,0.0017316]
[1733495555870,0.201286,99361.0,99320.0,0.0017316]
[1733495555871,0.28024786,99360.0,99340.0,0.00185883]
[1733495556088,0.282,99365.0,99340.0,0.00185883]
[1733495556089,0.201307,99351.0,99340.0,0.00185883]
[1733495556382,0.10503154,99359.0,99340.0,0.00185883]
[1733495556600,0.201292,99358.0,99340.0,0.00185883]
[1733495556845,0.201293,99358.0,99340.0,0.00185883]
[1733495557073,0.36184786,99380.0,99341.0,0.02031958]
[1733495557294,0.201282,99363.0,99341.0,0.02031958]
[1733495557510,0.201284,99362.0,99341.0,0.02031958]
[1733495557727,0.201263,99372.0,99340.0,0.00285883]
[1733495557728,0.10503154,99361.0,99340.0,0.00285883]
[1733495557945,0.402629,99347.0,99340.0,0.00285883]
[1733495558161,0.15924422,99360.0,99340.0,0.00285883]
[1733495558400,0.201316,99346.0,99340.0,0.00185883]
[1733495558595,0.201326,99341.0,99340.0,0.00185883]
[1733495558802,0.201326,99341.0,99340.0,0.00285883]
[1733495559010,0.201326,99341.0,99340.0,0.00185883]
[1733495559217,0.201326,99341.0,99340.0,0.00285883]
[1733495559657,0.201316,99346.0,99340.0,0.00185883]
[1733495559861,0.201325,99342.0,99340.0,0.00185883]
[1733495560114,0.201325,99342.0,99340.0,0.00285883]
[1733495561389,0.201325,99342.0,99340.0,0.00185883]
[1733495562011,0.201325,99342.0,99340.0,0.00285883]
[1733495562434,0.402646,99343.0,99340.0,0.00285883]
[1733495563095,0.15,99358.0,99340.0,0.00285883]
[1733495563096,0.201314,99347.0,99340.0,0.00285883]
[1733495563313,0.25,99361.0,99340.0,0.00285883]
[1733495563314,0.24084422,99380.0,99340.0,0.00185883]
[1733495563530,0.20127,99369.0,99341.0,0.10603803]
[1733495563759,0.201257,99376.0,99343.0,0.201322]
[1733495564015,0.2731314,99393.0,99365.0,0.201277]
[1733495564228,0.2731314,99393.0,99344.0,0.10503154]
[1733495564229,0.201245,99382.0,99344.0,0.10503154]
[1733495564437,0.201245,99382.0,99359.0,0.402579]
[1733495564438,0.00314549,99381.0,99359.0,0.402579]
[1733495564645,0.20439249,99380.0,99361.0,0.201286]
[1733495564863,0.00314549,99379.0,99362.0,0.10503154]
[1733495565071,0.201245,99382.0,99362.0,0.10503154]
[1733495565072,0.00314549,99378.0,99363.0,0.05076145]
[1733495565311,0.00314549,99377.0,99363.0,0.05076145]
[1733495565520,0.00314549,99376.0,99363.0,0.05076145]
[1733495565733,0.00314549,99375.0,99363.0,0.05076145]
[1733495565956,0.00314549,99374.0,99363.0,0.05076145]
[1733495566203,0.00314549,99373.0,99364.0,0.0357082]
[1733495566406,0.00314549,99372.0,99365.0,0.201278]
[1733495566615,0.201237,99386.0,99364.0,0.0357082]
[1733495566830,0.201236,99386.0,99366.0,0.10503154]
[1733495567052,0.201239,99384.0,99366.0,0.10503154]
[1733495567271,0.201229,99389.0,99361.0,0.01084359]
[1733495567272,0.0031453,99383.0,99361.0,0.01084359]
[1733495567485,0.0031453,99382.0,99362.0,0.3275292]
[1733495567696,0.0031453,99381.0,99362.0,0.3275292]
[1733495567922,0.0031453,99380.0,99362.0,0.30631554]
[1733495568150,0.0031453,99379.0,99369.0,0.201269]
[1733495568361,0.0031453,99378.0,99371.0,0.201265]
[1733495568569,0.01984449,99421.0,99373.0,0.0456]
[1733495568779,0.201184,99411.0,99389.0,0.201228]
[1733495569452,0.201196,99406.0,99385.0,0.201235]
[1733495569675,0.02006395,99433.0,99389.0,0.00012763]
[1733495569902,0.078,99443.0,99391.0,0.201225]
[1733495570130,0.078,99443.0,99390.0,0.44392523]
[1733495570131,0.201124,99441.0,99396.0,0.201215]
[1733495570348,0.201104,99451.0,99404.0,0.08861977]
[1733495570577,0.201115,99446.0,99421.0,0.28978377]
[1733495570784,0.201104,99451.0,99405.0,0.10603727]
[1733495570785,0.00397873,99429.0,99426.0,0.201153]
[1733495570994,0.201105,99451.0,99427.0,0.10503154]
[1733495571209,0.201115,99446.0,99427.0,0.10503154]
[1733495571434,0.402249,99441.0,99419.0,0.08859724]
[1733495571647,0.201115,99446.0,99421.0,0.201164]
[1733495571853,0.201135,99436.0,99418.0,0.08859724]
[1733495572062,0.251088,99459.0,99427.0,0.009]
[1733495572063,0.402297,99429.0,99427.0,0.009]
[1733495572479,0.201148,99429.0,99408.0,0.08859724]
[1733495572727,0.00144129,99430.0,99419.0,0.009]
[1733495573145,0.20115,99428.0,99408.0,0.08859724]
[1733495573357,0.20115,99428.0,99406.0,0.201193]
[1733495573358,0.20115,99428.0,99427.0,0.009]
[1733495574270,0.402301,99428.0,99427.0,0.009]
[1733495574688,0.402301,99428.0,99406.0,0.201193]
[1733495575104,0.402301,99428.0,99419.0,0.009]
[1733495575314,0.20116,99423.0,99406.0,0.06238911]
[1733495575579,0.00144129,99430.0,99427.0,0.008]
[1733495575762,0.201148,99429.0,99427.0,0.008]
[1733495575979,0.201176,99416.0,99396.0,0.249114]
[1733495576194,0.201167,99420.0,99398.0,0.201211]
[1733495576404,0.201167,99420.0,99406.0,0.009]
[1733495576615,0.201167,99420.0,99399.0,0.10503154]
[1733495576840,0.201167,99420.0,99399.0,0.15849698]
[1733495577059,0.00144129,99430.0,99393.0,0.0811]
[1733495577275,0.201167,99420.0,99394.0,0.30625054]
[1733495577476,0.10503154,99429.0,99394.0,0.30625054]
[1733495577477,0.201178,99415.0,99394.0,0.30625054]
[1733495577698,0.201186,99411.0,99394.0,0.1547912]
[1733495577964,0.201197,99405.0,99387.0,0.08859724]
[1733495578185,0.201197,99405.0,99380.0,0.0477]
[1733495578186,0.201203,99403.0,99388.0,0.10503154]
[1733495578399,0.402406,99403.0,99382.0,0.201243]
[1733495578612,0.201197,99406.0,99394.0,0.009]
[1733495579031,0.402394,99406.0,99385.0,0.201235]
[1733495579257,0.402394,99406.0,99387.0,0.009]
[1733495579513,1.5,99426.0,99388.0,0.30726858]
[1733495579514,0.15,99426.0,99388.0,0.30726858]
[1733495579729,0.201178,99415.0,99397.0,0.201213]
[1733495579941,0.201178,99415.0,99394.0,0.009]
[1733495580152,0.201156,99425.0,99394.0,0.009]
[1733495580362,0.10503154,99424.0,99394.0,0.210218]
[1733495580569,0.201176,99416.0,99396.0,0.201215]
[1733495580799,0.201184,99412.0,99395.0,0.24437831]
[1733495581015,0.201176,99416.0,99395.0,0.24437831]
[1733495581237,0.402351,99416.0,99396.0,0.02346377]
[1733495581452,0.201175,99416.0,99396.0,0.02346377]
[1733495581679,0.00144129,99430.0,99397.0,0.10503154]
[1733495581922,0.00144129,99430.0,99429.0,0.201148]
[1733495582161,0.00144129,99430.0,99429.0,0.34640954]
[1733495582378,0.00144129,99430.0,99416.0,0.201174]
[1733495582610,0.00144129,99430.0,99427.0,0.201152]
[1733495582842,0.00144129,99430.0,99429.0,0.32917954]
[1733495583060,0.201061,99472.0,99429.0,0.41147954]
[1733495583296,0.00314406,99471.0,99430.0,0.07515339]
[1733495583529,0.10503154,99471.0,99431.0,0.10503154]
[1733495583742,0.201088,99459.0,99440.0,0.201124]
[1733495583963,0.10503154,99471.0,99431.0,0.10503154]
[1733495583964,0.201102,99452.0,99431.0,0.10503154]
[1733495584174,0.10503154,99471.0,99438.0,0.201129]
[1733495584175,0.201095,99456.0,99438.0,0.201129]
[1733495584395,0.201065,99470.0,99431.0,0.10503154]
[1733495584608,0.10817453,99469.0,99416.0,0.009]
[1733495584821,0.201106,99450.0,99435.0,0.201135]
[1733495585031,0.201106,99450.0,99427.0,0.201152]
[1733495585248,0.10520417,99469.0,99427.0,0.10503154]
[1733495585460,0.25,99458.0,99418.0,0.20117]
[1733495585709,0.402262,99438.0,99419.0,0.201167]
[1733495585955,0.20114,99434.0,99419.0,0.2562955]
[1733495586164,0.20114,99434.0,99414.0,0.279878]